bitfinex/quotes_ETHUSD_20260203
["timestamp","ask_amount","ask_price","bid_price","bid_amount"]
[1770136139230,12.36929951,2264.2,2263.2,1.10459679]
[1770136139433,12.36929951,2264.2,2263.3,1.10457848]
[1770136139860,1.23692995,2264.5,2263.5,1.10446141]
[1770136140059,0.926,2264.1,2263.6,0.55225645]
[1770136140234,0.926,2264.1,2263.0,0.0220376]
[1770136140433,0.926,2264.1,2262.6,0.40166446]
[1770136140434,13.47353979,2264.0,2262.6,0.40166446]
[1770136140645,13.47353979,2264.0,2262.2,4.42045394]
[1770136140646,12.36929951,2263.5,2262.2,4.42045394]
[1770136140839,1.10424028,2264.0,2262.7,1.10487182]
[1770136141035,0.926,2263.8,2262.8,0.55243706]
[1770136141239,0.926,2263.7,2262.8,0.55243706]
[1770136142447,1.10414274,2264.2,2262.9,1.10477705]
[1770136142637,4.54039161,2264.6,2262.9,1.10477705]
[1770136142638,0.926,2264.1,2262.9,1.10477705]
[1770136142836,0.926,2264.1,2263.0,0.60983599]
[1770136142837,13.29529951,2264.1,2263.0,0.60983599]
[1770136143039,13.29529951,2264.1,2263.5,0.001]
[1770136143736,0.926,2264.0,2263.5,0.001]
[1770136144880,1.10399646,2264.5,2263.5,0.001]
[1770136144881,0.926,2264.5,2263.5,0.001]
[1770136145346,0.0011,2265.1,2263.9,0.0220376]
[1770136145687,1.88555558,2262.5,2261.2,1.63647458]
[1770136145837,0.22972748,2261.9,2260.4,0.0220376]
[1770136146036,0.22972748,2261.9,2261.3,11.21615452]
[1770136146362,4.72233098,2261.8,2260.5,0.0132714]
[1770136146571,4.75310456,2261.0,2260.9,0.0132714]
[1770136146741,1.84657994,2261.0,2260.9,0.0132714]
[1770136146935,1.84657994,2261.0,2260.6,0.0132714]
[1770136146936,0.92057994,2261.0,2260.6,0.0132714]
[1770136147137,3.30286087,2261.9,2261.2,0.0132714]
[1770136147366,0.926,2261.9,2261.8,0.0132714]
[1770136147663,9.58054319,2262.8,2261.8,0.0132714]
[1770136147868,1.53691426,2262.7,2262.4,0.0132714]
[1770136148166,2.07109986,2262.6,2262.3,0.0132714]
[1770136148372,0.926,2262.6,2260.4,4.65342364]
[1770136148539,1.53691426,2262.5,2260.4,4.65342364]
[1770136148744,1.53691426,2262.5,2262.0,0.0132714]
[1770136148970,1.53691426,2262.5,2262.1,0.0132714]
[1770136149268,0.926,2262.4,2262.2,0.0132714]
[1770136149469,1.53691426,2262.5,2262.3,0.0132714]
[1770136149670,8.43544333,2262.8,2262.7,0.0132714]
[1770136149868,0.926,2263.0,2262.7,0.0132714]
[1770136150035,0.926,2263.0,2262.8,0.0132714]
[1770136150476,1.54424329,2263.7,2262.9,0.0132714]
[1770136150684,1.53691426,2263.6,2263.3,0.0132714]
[1770136150837,1.53691426,2263.6,2263.5,0.0132714]
[1770136151037,2.46291426,2263.6,2263.5,0.0132714]
[1770136151236,12.36929951,2264.4,2263.7,0.0132714]
[1770136151459,0.926,2264.3,2263.6,0.0132714]
[1770136151658,1.63684329,2264.2,2263.5,0.0132714]
[1770136151870,0.926,2264.1,2263.0,1.10472823]
[1770136152038,2.39648394,2264.2,2263.1,0.0132714]
[1770136152239,0.926,2264.1,2263.2,0.0132714]
[1770136153080,0.926,2264.1,2263.2,1.11787605]
[1770136153361,0.25628433,2264.0,2263.2,1.11787605]
[1770136153569,0.926,2263.9,2263.2,1.11787605]
[1770136154289,0.926,2263.8,2263.2,1.11787605]
[1770136154762,0.926,2263.7,2263.2,1.10460465]
[1770136154962,0.926,2263.7,2263.1,4.41869776]
[1770136155174,0.25628433,2264.0,2263.1,5.42886896]
[1770136155394,0.25628433,2264.0,2263.4,0.0132714]
[1770136155564,0.926,2263.9,2263.4,0.0132714]
[1770136156098,3.07313339,2264.8,2263.9,0.0132714]
[1770136156316,4.92584232,2265.0,2264.1,0.0132714]
[1770136156461,1.41869423,2264.9,2264.2,0.0132714]
[1770136157110,14.89180059,2264.9,2264.1,0.0132714]
[1770136157290,0.0011,2263.7,2263.4,1.104533]
[1770136157462,0.926,2264.4,2263.6,0.0132714]
[1770136157662,0.0011,2263.9,2263.6,0.0132714]
[1770136157862,17.03893398,2264.9,2263.6,0.0132714]
[1770136158086,3.07139671,2264.8,2263.8,0.0132714]
[1770136158258,0.926,2264.7,2263.8,0.0132714]
[1770136159087,0.92671415,2264.6,2263.9,1.10428905]
[1770136159290,0.92671415,2264.5,2263.9,1.10428905]
[1770136159478,0.92671415,2264.4,2263.9,1.10428905]
[1770136159776,0.92671415,2264.3,2263.8,1.11757427]
[1770136160092,0.92671415,2264.2,2263.8,1.11757427]
[1770136160301,0.92671415,2264.1,2263.8,1.11757427]
[1770136160509,0.92671415,2264.0,2263.8,1.11757427]
[1770136160809,1.10389897,2264.7,2263.8,1.10433123]
[1770136160968,2.62012338,2264.6,2263.5,1.11772436]
[1770136161169,2.03163863,2264.5,2263.5,1.10446883]
[1770136161370,0.92764217,2264.4,2263.5,1.10446883]
[1770136161599,0.92764217,2264.3,2263.5,1.10446883]
[1770136161797,0.92764217,2264.2,2263.6,0.0132714]
[1770136162090,0.92764217,2264.1,2263.6,0.0132714]
[1770136162290,0.92764217,2264.0,2263.6,0.0132714]
[1770136162488,0.92764217,2263.9,2263.6,0.0132714]
[1770136162666,0.92764217,2263.8,2263.6,0.0132714]
[1770136162868,0.91547077,2263.7,2263.6,0.0132714]
[1770136163068,1.10399646,2264.5,2263.7,1.10438662]
[1770136163265,12.18873139,2264.3,2262.8,4.41928873]
[1770136163478,3.07313339,2264.0,2262.9,0.0132714]
[1770136163777,3.99913339,2263.9,2262.8,4.4324504]
[1770136163991,0.39991334,2263.8,2263.0,1.10472655]
[1770136164182,0.39991334,2263.8,2262.9,0.0132714]
[1770136164373,0.39991334,2263.8,2263.3,1.11785103]
[1770136164584,3.07313339,2264.3,2263.6,0.0132714]
[1770136165187,1.10414274,2264.2,2263.6,0.0132714]
[1770136166074,3.07313339,2264.0,2262.8,1.11805986]
[1770136166593,3.07313339,2263.9,2262.8,1.11805986]
[1770136166765,1.23331334,2263.8,2262.8,1.11805986]
[1770136166965,1.23331334,2263.8,2262.8,1.11809306]
[1770136167194,2.31720888,2263.6,2262.8,0.0132714]
[1770136167494,2.31720888,2263.3,2262.4,0.0142714]
[1770136167700,2.31720888,2263.3,2262.7,0.0132714]
[1770136167997,2.31720888,2263.5,2263.2,0.0132714]
[1770136168304,3.72889482,2263.8,2263.3,0.0132714]
[1770136168614,2.31720888,2263.7,2263.3,0.0132714]
[1770136168768,3.42158148,2263.8,2263.3,0.0132714]
[1770136169097,3.42158148,2263.8,2263.1,0.0132714]
[1770136169268,1.10443541,2263.6,2263.1,0.0132714]
[1770136169606,1.10441352,2263.7,2263.1,0.0132714]
[1770136169908,2.31720888,2263.6,2263.0,0.0132714]
[1770136170205,2.31720888,2263.6,2263.2,0.001]
[1770136171317,1.104533,2263.4,2263.2,0.001]
[1770136171516,3.42170424,2263.5,2263.0,0.001]
[1770136171823,3.42166644,2263.6,2263.0,0.001]
[1770136172364,3.42166644,2263.6,2035.0,0.13]
[1770136172365,12.18873139,2262.0,2260.7,0.0132714]
[1770136172515,2.31740528,2261.5,2259.2,4.42625054]
[1770136172701,2.31740528,2261.2,2260.6,0.0132714]
[1770136172894,2.31740528,2261.2,2260.1,0.0132714]
[1770136173094,2.31740528,2260.8,2260.1,0.0132714]
[1770136173394,4.34927519,2260.7,2260.0,0.0132714]
[1770136173693,2.31740528,2260.5,2259.8,0.0132714]
[1770136173894,2.31740528,2260.5,2260.1,0.0132714]
[1770136174111,2.31740528,2260.6,2259.9,0.0132714]
[1770136174341,1.31074029,2260.6,2259.7,0.01327257]
[1770136174541,2.31740528,2260.3,2259.7,0.01327257]
[1770136174754,0.926,2260.2,2259.3,0.01327257]
[1770136174926,0.92245118,2260.1,2259.3,0.01327257]
[1770136175121,0.92245118,2260.0,2258.6,1.12012336]
[1770136175322,1.10629259,2259.8,2258.9,0.01327609]
[1770136175508,1.10629259,2259.8,2258.4,12.60685893]
[1770136175509,0.92245118,2259.7,2258.4,12.60685893]
[1770136175709,0.92034695,2259.6,2258.5,1.349268]
[1770136175914,1.84634695,2259.5,2258.5,1.349268]
[1770136176154,0.1024,2259.3,2257.9,0.01328021]
[1770136176456,0.2335703,2259.0,2257.3,0.01328021]
[1770136176609,0.2335703,2259.0,2257.2,0.001]
[1770136176610,0.1024,2258.7,2257.2,0.001]
[1770136176811,0.92034695,2258.6,2257.3,0.01328021]
[1770136177063,0.92034695,2258.5,2257.4,0.01328021]
[1770136177209,0.1024,2259.2,2257.6,0.01328638]
[1770136177536,0.1024,2259.0,2257.6,0.01328638]
[1770136177765,1.84161391,2258.9,2257.4,0.01328021]
[1770136177931,1.84161391,2258.8,2257.3,0.01328021]
[1770136178106,1.01685362,2258.7,2257.2,0.928]
[1770136178310,0.1024,2258.7,2257.2,0.928]
[1770136178713,0.1024,2259.0,2257.7,0.01328638]
[1770136179324,5.62968589,2259.3,2257.9,0.01328638]
[1770136179534,1.1065864,2259.2,2258.0,0.01328638]
[1770136179752,1.1065864,2259.2,2257.8,0.01328638]
[1770136179753,1.20334029,2259.1,2257.2,17.97821663]
[1770136179937,1.6598796,2259.2,2257.4,0.01328638]
[1770136180451,1.1065864,2259.2,2257.9,0.01328638]
[1770136180823,1.1065864,2259.2,2258.0,0.01328638]
[1770136181445,4.42551189,2259.7,2258.0,1.12042195]
[1770136181650,4.42551189,2259.7,2258.4,0.01328638]
[1770136181850,4.42551189,2259.7,2258.2,0.01328638]
[1770136182053,4.42551189,2259.7,2258.4,0.01328638]
[1770136182460,5.42123385,2259.7,2258.1,0.01328638]
[1770136182636,5.42123385,2259.7,2258.2,0.01328638]
[1770136182828,5.42123385,2259.7,2258.0,2.04745378]
[1770136183153,5.42123385,2259.7,2258.0,0.94028638]
[1770136183324,1.10634154,2259.7,2258.6,0.01328638]
[1770136183528,16.61352923,2260.0,2258.3,0.01328638]
[1770136183834,0.0011,2259.5,2258.2,1.10706438]
[1770136184029,0.0011,2259.5,2258.0,2.0341414]
[1770136184259,0.0011,2259.5,2258.2,1.10704755]
[1770136184430,0.0011,2259.5,2258.3,0.55355359]
[1770136184636,0.0011,2259.5,2258.0,2.03413942]
[1770136184844,0.11678638,2259.5,2257.7,1.10728833]
[1770136185226,0.11678638,2259.5,2257.6,0.001]
[1770136185529,1.10648844,2259.4,2258.0,0.01328638]
[1770136186533,18.06742088,2259.4,2258.1,0.01328638]
[1770136187026,18.06742088,2259.4,2258.2,0.01328638]
[1770136188165,20.75946373,2259.4,2258.0,1.12043372]
[1770136188368,20.75946373,2259.4,2258.1,1.10711553]
[1770136188560,20.75946373,2259.4,2258.2,1.10706991]
[1770136188862,20.75946373,2259.4,2258.0,1.12042279]
[1770136189283,20.75946373,2259.4,2258.1,1.10712448]
[1770136189573,18.06742088,2259.4,2258.1,1.10708799]
[1770136189754,18.06742088,2259.4,2258.0,1.12042532]
[1770136191078,18.06742088,2259.4,2257.8,0.01328638]
[1770136191276,9.17725701,2259.3,2258.0,1.10713894]
[1770136191779,1.1065864,2259.2,2258.0,1.10713894]
[1770136191975,8.29653501,2259.1,2258.1,0.55492084]
[1770136192446,8.29653501,2259.1,2258.1,0.50585522]
[1770136193156,8.29653501,2259.1,2258.3,0.01328638]
[1770136193364,8.29653501,2259.1,2258.2,0.01328638]
[1770136193865,1.10668437,2259.0,2258.2,1.12035875]
[1770136194175,8.55853646,2259.0,2258.2,1.1203568]
[1770136194376,7.34973009,2258.9,2258.2,0.01328638]
[1770136194681,7.34973009,2258.9,2257.8,0.01328638]
[1770136194682,0.01328638,2257.6,2255.3,0.04085914]
[1770136194847,0.01328638,2257.6,2255.1,11.76727215]
[1770136194848,6.68118436,2256.8,2255.1,11.76727215]
[1770136195047,0.23006526,2256.2,2255.7,0.01328638]
[1770136195246,0.03984736,2255.3,2255.2,0.01329816]
[1770136195477,3.58349738,2255.0,2254.9,0.01329816]
[1770136195666,0.928,2256.0,2254.9,0.01329816]
[1770136195667,0.928,2256.0,2255.1,0.01329816]
[1770136195866,1.10820515,2255.9,2255.4,0.01329816]
[1770136196176,1.10820515,2255.9,2255.0,0.01329816]
[1770136196177,0.64690258,2255.8,2255.0,0.01329816]
[1770136196475,0.64690258,2255.8,2254.7,0.51830023]
[1770136196476,1.78685553,2255.7,2254.7,0.51830023]
[1770136196674,2.71485553,2255.7,2254.7,0.51830023]
[1770136196875,1.74069873,2255.6,2254.5,0.56830023]
[1770136197048,1.74069873,2255.6,2254.8,0.01330023]
[1770136197460,1.74069873,2255.6,2254.9,0.01330347]
[1770136197659,1.74069873,2255.6,2254.5,0.555]
[1770136197863,1.10840168,2255.5,2254.5,0.56830347]
[1770136198062,1.99865693,2255.4,2254.5,0.56830347]
[1770136198272,1.99865693,2255.4,2254.1,12.93051801]
[1770136198474,1.99865693,2255.4,2254.6,0.01330376]
[1770136198675,1.99865693,2255.4,2254.8,0.01330376]
[1770136198981,1.99865693,2255.4,2254.6,0.01330376]
[1770136199287,2.92665693,2255.4,2254.2,1.3076842]
[1770136199489,3.23308124,2255.3,2254.8,0.01330376]
[1770136199653,3.23308124,2255.3,2254.8,1.19810802]
[1770136199983,1.10854913,2255.2,2254.4,0.01330376]
[1770136200308,2.57582347,2255.2,2254.7,0.01330494]
[1770136200752,2.57582347,2255.2,2254.3,0.01330494]
[1770136201085,2.57582347,2255.2,2254.8,0.01330524]
[1770136201382,1.10771412,2256.9,2255.6,0.01330524]
[1770136201557,4.43111501,2256.8,2255.5,0.01330524]
[1770136201880,4.43111501,2256.8,2255.4,0.01330524]
[1770136201881,0.74294684,2256.7,2255.4,0.01330524]
[1770136202052,4.43111501,2256.8,2255.4,0.01330524]
[1770136202252,1.84399972,2256.7,2255.5,0.01330524]
[1770136202471,4.43111501,2256.8,2255.5,0.01330524]
[1770136202675,0.91532334,2256.7,2255.5,0.01330524]
[1770136202978,4.43111501,2256.8,2255.5,0.01330524]
[1770136203277,0.91537372,2256.7,2255.9,0.01330524]
[1770136203485,1.10771412,2256.9,2256.2,0.01330524]
[1770136203647,1.10771412,2256.9,2256.0,11.82143653]
[1770136203648,1.10771412,2256.9,2256.0,11.80813129]
[1770136203853,4.42985701,2257.5,2256.1,1.18081313]
[1770136204082,0.91612812,2257.4,2256.1,2.28891646]
[1770136204285,4.42985701,2257.5,2256.1,14.11035299]
[1770136204461,1.10732161,2257.7,2256.3,11.80813129]
[1770136204656,1.10732161,2257.7,2256.5,11.80813129]
[1770136204857,1.10697839,2258.4,2256.9,11.82143653]
[1770136205064,1.66080554,2258.3,2256.9,11.80813129]
[1770136205302,1.10697839,2258.4,2256.9,11.80813129]
[1770136205694,1.10678236,2258.8,2257.1,11.80813129]
[1770136205861,5.9526137,2258.9,2257.3,12.91561227]
[1770136205862,1.10688036,2258.6,2257.3,12.91561227]
[1770136206062,1.10688036,2258.6,2257.3,11.80813129]
[1770136206295,1.10688036,2258.6,2257.3,12.91564728]
[1770136206605,4.4281969,2258.9,2257.3,12.92895252]
[1770136206905,1.10786141,2258.9,2257.5,11.82143653]
[1770136207072,1.10786141,2258.9,2257.5,11.80813129]
[1770136207262,1.10786141,2258.9,2257.7,11.80813129]
[1770136207902,0.0011,2258.9,2257.7,12.91544758]
[1770136208196,0.0011,2258.9,2257.7,11.80813129]
[1770136208396,0.0011,2258.9,2257.8,2.22054617]
[1770136208699,0.0011,2258.9,2257.8,13.52362626]
[1770136209491,0.0011,2259.1,2258.2,11.82143653]
[1770136209963,0.0011,2259.1,2258.3,1.1070274]
[1770136210165,0.0011,2259.1,2258.4,0.929]
[1770136210590,0.1,2259.4,2258.4,12.73713129]
[1770136210772,0.1,2259.4,2258.7,11.80813129]
[1770136211089,0.1,2259.4,2258.5,1.38574639]
[1770136211299,0.1,2259.4,2258.5,11.80813129]
[1770136211463,0.0011,2259.5,2258.6,11.82143653]
[1770136211681,0.0011,2259.5,2258.6,11.80813129]
[1770136211878,0.0011,2259.5,2258.7,12.91496265]
[1770136212113,0.0011,2259.7,2258.9,11.82143653]
[1770136212313,0.0011,2259.9,2259.0,13.93291071]
[1770136212519,0.0011,2259.9,2259.0,13.91960547]
[1770136212678,0.0011,2259.9,2259.0,0.928]
[1770136213081,0.7018669,2259.8,2257.5,0.01330524]
[1770136213280,1.14982406,2258.2,2257.1,0.01330524]
[1770136213509,0.26742083,2258.2,2257.9,0.01330524]
[1770136213687,1.14982406,2258.7,2257.7,0.01330524]
[1770136214011,1.10692937,2258.5,2258.4,0.01330524]
[1770136214312,4.42676608,2259.0,2258.7,0.01330524]
[1770136214523,1.10668437,2259.0,2258.7,0.01330524]
[1770136214684,2.10270327,2259.0,2258.5,0.01330524]
[1770136214880,1.66251283,2258.9,2257.6,0.01330524]
[1770136215186,0.91956599,2258.8,2258.2,0.01771048]
[1770136215387,8.90528241,2258.8,2257.7,0.01330524]
[1770136215586,0.91956599,2258.7,2258.1,0.01771048]
[1770136215887,0.91956599,2258.7,2258.2,0.01771048]
[1770136215888,1.10692937,2258.5,2258.2,0.01771048]
[1770136216205,1.10692937,2258.5,2257.8,0.01771048]
[1770136216511,0.920059,2258.4,2257.7,0.01771048]
[1770136216696,0.920059,2258.3,2257.7,0.01771048]
[1770136216903,1.10692937,2258.5,2256.9,11.80813129]
[1770136217206,1.14982406,2258.1,2256.9,11.80813129]
[1770136217411,1.14982406,2258.1,2256.7,0.928]
[1770136217609,2.06971999,2258.1,2256.7,0.928]
[1770136217811,2.06971999,2258.0,2256.7,0.928]
[1770136217981,2.25709662,2257.8,2256.7,0.928]
[1770136218182,1.83294264,2257.7,2256.7,0.928]
[1770136218406,1.10727256,2257.8,2256.8,0.01771048]
[1770136218614,1.10727256,2257.8,2256.7,2.0358063]
[1770136218910,0.92022557,2257.7,2255.4,4.45149219]
[1770136219078,1.14982406,2257.7,2256.3,2.03600426]
[1770136219278,0.31773222,2257.6,2256.6,1.10785276]
[1770136219508,2.25709662,2257.8,2256.6,1.10785276]
[1770136219509,1.10715985,2258.1,2256.8,0.01771048]
[1770136219707,1.10715985,2258.1,2256.9,0.01771048]
[1770136219926,4.42850183,2258.2,2256.7,13.84393648]
[1770136219927,0.92033994,2258.0,2256.7,13.84393648]
[1770136220087,4.42850183,2258.2,2256.7,13.84393648]
[1770136220412,0.92056975,2258.1,2256.8,0.928]
[1770136220595,2.60530097,2258.0,2256.6,0.928]
[1770136220792,2.08810429,2257.9,2256.6,0.928]
[1770136220992,2.08810429,2257.8,2256.6,0.928]
[1770136221193,2.08810429,2257.8,2255.8,11.81988717]
[1770136221194,2.07039381,2257.7,2255.8,11.81988717]
[1770136221406,0.92056975,2257.6,2256.0,1.10811972]
[1770136221712,0.53490716,2258.0,2256.7,1.12549567]
[1770136221912,1.64212539,2258.0,2256.9,1.10771412]
[1770136222484,1.10721823,2258.0,2256.9,1.10771412]
[1770136222714,1.10721823,2258.0,2256.8,0.928]
[1770136222917,0.92098661,2257.9,2256.9,0.928]
[1770136223094,0.92098661,2257.8,2256.7,12.92769401]
[1770136223300,2.25704229,2258.0,2256.8,0.928]
[1770136223500,1.59013021,2257.9,2256.8,0.928]
[1770136223700,0.92157059,2257.8,2256.8,0.928]
[1770136223899,1.14982406,2258.1,2256.8,13.8556444]
[1770136224111,1.10700762,2258.4,2257.2,11.83759765]
[1770136224617,0.92228549,2258.3,2257.2,11.81988717]
[1770136224815,1.10700762,2258.4,2257.3,1.18375977]
[1770136225120,0.92235369,2258.3,2257.3,1.18375977]
[1770136225322,1.10700762,2258.4,2257.3,1.18375977]
[1770136225517,1.10700762,2258.4,2257.3,13.00364694]
[1770136226018,1.10688036,2258.6,2257.4,1.10746876]
[1770136226327,0.92327357,2258.5,2257.5,2.78210372]
[1770136226626,0.92327357,2258.4,2257.5,1.85410372]
[1770136226828,0.92327357,2258.3,2257.5,0.928]
[1770136227132,3.36795519,2258.6,2257.5,0.928]
[1770136227323,2.07467479,2258.5,2257.5,0.928]
[1770136227900,1.1070274,2258.3,2257.5,12.74788717]
[1770136228097,1.1070274,2258.3,2257.6,1.38553321]
[1770136228308,0.92587718,2258.2,2257.5,12.74788717]
[1770136228509,0.92587718,2258.1,2257.5,0.928]
[1770136228708,1.1070274,2258.3,2257.5,0.928]
[1770136228934,1.14982406,2258.5,2257.8,0.01771048]
[1770136229110,2.25776528,2258.7,2257.8,0.01771048]
[1770136229316,1.14982406,2258.6,2257.8,0.01771048]
[1770136229633,2.25776528,2258.7,2257.8,0.01771048]
[1770136229835,1.14982406,2258.6,2257.8,0.01771048]
[1770136230029,0.0011,2258.7,2257.9,1.10722352]
[1770136230233,0.73869206,2258.0,2256.0,0.01771048]
[1770136230439,0.73869206,2258.0,2255.4,13.78337829]
[1770136230440,1.63143748,2256.1,2255.4,13.78337829]
[1770136230640,5.44688152,2255.8,2255.7,0.01771048]
[1770136230812,5.42917152,2255.5,2255.4,0.01771048]
[1770136231017,5.42917152,2255.5,2255.0,0.01771048]
[1770136231222,1.15836423,2255.9,2255.1,0.01330112]
[1770136231223,5.42917152,2255.2,2255.1,0.01330112]
[1770136231533,1.15836423,2255.9,2255.2,0.01330112]
[1770136231736,1.15836423,2255.6,2254.4,11.81988717]
[1770136231903,1.10854913,2255.2,2254.4,11.83318829]
[1770136232233,1.10854913,2255.2,2254.5,0.01330112]
[1770136232842,1.10854913,2255.2,2254.1,1.12335602]
[1770136232843,1.15836423,2255.1,2254.1,0.001]
[1770136233213,3.380444,2255.2,2254.1,0.001]
[1770136233637,1.15836423,2255.0,2253.0,11.9100941]
[1770136233836,6.07645062,2254.5,2253.1,0.001]
[1770136234038,6.07645062,2254.5,2252.1,0.01330612]
[1770136234039,12.79072462,2253.1,2251.5,9.177071]
[1770136234343,12.79072462,2253.1,2247.4,0.22151075]
[1770136234344,0.69648785,2249.9,2247.4,0.22151075]
[1770136234547,0.69648785,2249.9,2247.1,0.929]
[1770136234548,0.69648785,2249.9,2249.2,0.01331292]
[1770136234840,0.23206498,2250.4,2246.4,0.36226378]
[1770136234841,0.01331292,2248.8,2246.4,0.36226378]
[1770136235140,1.5286678,2250.2,2247.9,12.93201167]
[1770136235141,1.67194684,2249.6,2247.9,12.93201167]
[1770136235442,0.23206498,2250.4,2247.9,12.93201167]
[1770136235443,6.3085156,2250.4,2249.5,0.01334668]
[1770136235737,0.23206498,2250.4,2249.7,0.01334668]
[1770136235939,0.23206498,2250.4,2249.3,0.01334668]
[1770136236142,0.23206498,2250.4,2249.0,0.01334668]
[1770136236143,0.929,2250.3,2249.0,0.01334668]
[1770136236441,0.929,2250.3,2248.4,0.01334668]
[1770136236442,0.05338672,2248.6,2247.4,0.01334668]
[1770136236608,0.05338672,2248.6,2247.0,0.01334668]
[1770136236609,6.07645062,2250.1,2249.3,0.01334668]
[1770136236811,1.11066684,2250.9,2250.0,0.01334668]
[1770136237068,12.79072462,2251.4,2248.5,12.74888717]
[1770136237214,12.79072462,2250.4,2248.2,0.01334668]
[1770136237543,0.23081896,2246.7,2245.8,14.91868717]
[1770136237851,12.79072462,2248.5,2246.3,0.01334668]
[1770136238170,13.9019345,2249.9,2249.0,0.01334875]
[1770136238315,1.12179534,2250.8,2249.0,0.01334875]
[1770136238316,12.79072462,2250.6,2249.8,0.01334875]
[1770136238646,6.07645062,2251.5,2249.8,0.01334875]
[1770136238647,1.11071579,2250.9,2250.2,0.01334875]
[1770136238809,1.11071579,2250.9,2249.9,0.01334875]
[1770136239008,1.66605235,2250.9,2250.0,0.01334875]
[1770136239208,0.04004625,2249.7,2248.7,0.01334875]
[1770136239413,12.79072462,2250.5,2248.9,0.01334875]
[1770136239738,12.79072462,2250.3,2249.0,0.01334875]
[1770136239951,12.79072462,2250.3,2248.9,0.01334875]
[1770136240150,1.11101235,2250.2,2248.3,0.01334875]
[1770136240443,5.72312187,2250.4,2249.6,0.01334875]
[1770136240444,1.27907246,2250.4,2249.6,0.01334875]
[1770136240758,1.11042018,2251.4,2250.3,0.01334875]
[1770136240910,4.44156428,2251.5,2250.3,0.01334875]
[1770136240911,1.11037086,2251.5,2250.5,0.01334875]
[1770136241109,1.11037086,2251.5,2250.7,0.01334875]
[1770136241310,0.61825377,2251.5,2251.0,0.01334875]
[1770136241549,0.61825377,2251.5,2250.6,0.01334875]
[1770136241550,0.04004625,2250.5,2248.6,0.01334875]
[1770136241714,18.86717524,2251.1,2248.4,0.93]
[1770136241715,12.79072462,2251.1,2248.4,0.93]
[1770136241913,0.96510554,2251.4,2248.3,1.11191035]
[1770136241914,12.79072462,2250.7,2248.3,1.11191035]
[1770136242129,12.79072462,2250.7,2249.3,0.01334875]
[1770136242130,2.39122223,2250.6,2249.3,0.01334875]
[1770136242332,2.39122223,2250.6,2249.8,0.01334875]
[1770136242522,1.1104695,2251.3,2250.0,0.01334875]
[1770136242935,1.1104695,2251.3,2250.1,0.01334875]
[1770136243119,12.79072462,2251.1,2248.5,0.01334875]
[1770136243314,12.79072462,2251.1,2249.7,0.01334875]
[1770136243515,1.1104695,2251.3,2250.3,0.01334875]
[1770136243720,0.55523475,2251.2,2250.3,0.01334875]
[1770136243916,0.55523475,2251.2,2250.4,0.01334875]
[1770136244415,0.55523475,2251.2,2248.3,4.44777786]
[1770136244416,1.11056816,2251.1,2248.3,4.44777786]
[1770136244615,1.11056816,2251.1,2249.9,0.01334875]
[1770136244843,1.11056816,2251.1,2250.1,0.01334875]
[1770136245015,0.61080613,2251.0,2250.0,0.01334875]
[1770136245215,0.61080613,2251.0,2250.1,0.01334875]
[1770136245754,1.11056816,2251.1,2250.7,0.01334875]
[1770136245918,1.11027223,2251.7,2250.7,0.01334875]
[1770136246114,1.11027223,2251.7,2250.9,0.01334875]
[1770136246440,1.10992718,2252.4,2251.5,0.01334875]
[1770136246619,1.10992718,2252.4,2252.0,0.01334875]
[1770136246951,1.10992718,2252.4,2250.1,4.44422978]
[1770136246952,6.08979937,2252.1,2250.1,4.44422978]
[1770136247151,1.10992718,2252.4,2250.4,0.01776909]
[1770136247353,1.10992718,2252.4,2250.6,0.01776909]
[1770136247561,0.0011,2251.0,2250.1,1.11106173]
[1770136247857,0.01776909,2252.2,2250.1,1.12883082]
[1770136248027,0.01776909,2252.1,2250.1,1.12883082]
[1770136248229,0.01776909,2252.0,2250.1,1.12883082]
[1770136248472,1.11007504,2252.1,2250.3,1.11096298]
[1770136248618,0.56705443,2252.0,2250.4,0.5572584]
[1770136249254,0.12016909,2251.9,2249.6,0.01776909]
[1770136249478,0.56705443,2252.0,2250.3,0.01776909]
[1770136249635,0.56705443,2252.0,2250.4,0.01776909]
[1770136249843,0.56705443,2252.0,2250.8,0.01776909]
[1770136250420,0.56705443,2252.0,2250.7,0.01776909]
[1770136250596,0.55494486,2252.3,2251.1,0.01776909]
[1770136250895,1.11002575,2252.2,2250.7,1.1107307]
[1770136251172,1.11002575,2252.2,2250.8,0.01776909]
[1770136251377,1.11002575,2252.2,2251.2,0.01776909]
[1770136251594,1.11002575,2252.2,2250.7,1.12853164]
[1770136251894,0.2335703,2252.0,2250.7,0.01776909]
[1770136252042,0.55499867,2252.1,2250.8,0.01776909]
[1770136252243,0.55499867,2252.1,2250.9,0.01776909]
[1770136252475,1.11012433,2252.0,2250.9,0.01776909]
[1770136252638,1.11012433,2252.0,2249.8,0.01776909]
[1770136252639,0.2335703,2251.9,2249.8,0.01776909]
[1770136252846,0.84413233,2251.9,2250.4,1.12864606]
[1770136253061,0.84413233,2251.9,2250.5,1.12863277]
[1770136253248,0.84413233,2251.9,2250.5,0.01776909]
[1770136253442,0.61056203,2251.9,2250.8,0.01776909]
[1770136253771,0.61056203,2251.9,2250.4,1.11091041]
[1770136253772,0.01776909,2251.6,2250.4,1.11091041]
[1770136254068,0.01776909,2251.7,2250.3,1.1109273]
[1770136254271,0.62833112,2251.9,2250.4,1.11088093]
[1770136254472,0.62833112,2251.9,2250.5,1.11086321]
[1770136254674,1.12799202,2251.8,2250.4,4.44361889]
[1770136254971,1.12799202,2251.8,2250.3,1.66642362]
[1770136255278,1.11022293,2251.8,2250.3,1.66642362]
[1770136255448,0.61616767,2251.7,2250.4,0.70412756]
[1770136256080,0.61616767,2251.7,2250.4,0.72189665]
[1770136256802,1.11032154,2251.6,2250.5,1.11086425]
[1770136257073,4.44094244,2251.8,2250.5,1.12863334]
[1770136257375,4.44094244,2251.8,2250.6,0.01776909]
[1770136258072,4.44094244,2251.8,2250.5,1.11086425]
[1770136258477,4.44094244,2251.8,2250.4,2.74600785]
[1770136258660,0.61617274,2251.7,2250.4,2.74600785]
[1770136259100,1.11032154,2251.6,2250.4,2.76377694]
[1770136259250,1.11030524,2251.7,2250.7,0.01776909]
[1770136259449,1.11012433,2252.0,2251.0,0.01776909]
[1770136259751,1.11012433,2252.0,2250.8,0.01776909]
[1770136259752,1.11012433,2252.0,2250.8,0.94876909]
[1770136259957,0.53166857,2251.9,2250.8,0.94876909]
[1770136260153,4.44049733,2252.3,2250.8,0.94876909]
[1770136260154,1.12179534,2252.7,2251.2,0.01776909]
[1770136260385,1.10973011,2252.8,2251.8,0.01776909]
[1770136260752,1.10933617,2253.6,2252.2,0.01776909]
[1770136261081,1.1090901,2254.1,2252.9,0.01776909]
[1770136261248,1.1090901,2254.1,2253.1,0.01776909]
[1770136261450,1.1090901,2254.1,2252.7,1.12754846]
[1770136261451,0.91703409,2254.0,2252.0,11.72050726]
[1770136261665,2.03882943,2253.9,2252.3,1.12771515]